bitfinex-derivatives/quotes_BNBF0:USTF0_20250101
["timestamp","ask_amount","ask_price","bid_price","bid_amount"]
[1735704738629,0.26112548,705.53,704.26,1.06453049]
[1735704738831,0.26112548,705.52,704.26,1.06453049]
[1735704739036,1.48099811,705.6,704.26,1.06453049]
[1735704740235,1.48099811,705.6,703.99,1.06453049]
[1735704741334,1.48099811,705.6,702.98,2.17341642]
[1735704741335,1.48099811,705.6,703.98,1.06453049]
[1735704742635,1.48099811,705.6,703.96,1.06453049]
[1735704744034,1.48099811,705.6,703.14,1.27743659]
[1735704744035,1.48099811,705.6,703.95,1.06453049]
[1735704745132,1.48099811,705.6,703.98,1.06453049]
[1735704745528,1.48099811,705.6,703.99,0.28409494]
[1735704745731,0.28345072,705.59,703.99,0.28409494]
[1735704748936,0.26116044,705.58,703.99,0.28409494]
[1735704749635,0.28345876,705.57,703.99,0.28409494]
[1735704749839,0.26116044,705.56,703.99,0.28409494]
[1735704750230,0.28345876,705.57,704.07,1.06453049]
[1735704750436,0.26117958,705.56,704.07,1.06453049]
[1735704750630,0.28346679,705.55,704.07,1.06453049]
[1735704750829,0.26117958,705.54,704.07,1.06453049]
[1735704751035,0.54465663,705.53,704.07,1.06453049]
[1735704751233,1.48099811,705.6,704.07,1.06453049]
[1735704751234,0.54466065,705.52,704.07,1.06453049]
[1735704751437,0.54466467,705.51,704.07,1.06453049]
[1735704751737,0.54466868,705.5,704.02,1.06453049]
[1735704751937,0.2611818,705.49,704.03,0.2840788]
[1735704752139,0.2834909,705.49,704.03,0.2840788]
[1735704762639,0.26118409,705.48,704.03,0.2840788]
[1735704763038,0.28349894,705.47,704.1,1.06453049]
[1735704764141,0.28349894,705.47,704.12,1.06453049]
[1735704764842,0.2611813,705.46,704.12,1.06453049]
[1735704765842,0.2611813,705.46,704.17,1.06453049]
[1735704766945,0.26118784,705.45,704.17,1.06453049]
[1735704767147,0.26118784,705.44,704.17,1.06453049]
[1735704767345,0.26118784,705.43,704.17,1.06453049]
[1735704767548,0.26118784,705.42,704.17,1.06453049]
[1735704767740,0.26118784,705.41,704.17,1.06453049]
[1735704767943,0.26118784,705.4,704.17,1.06453049]
[1735704768150,0.26118784,705.4,704.03,0.2840788]
[1735704768151,0.54471893,705.39,704.16,1.06453049]
[1735704768348,0.26118784,705.38,704.16,1.06453049]
[1735704769250,1.31635951,705.38,704.25,1.06453049]
[1735704769451,0.26118784,705.37,704.25,1.06453049]
[1735704769642,0.26120304,705.36,704.25,1.06453049]
[1735704769845,1.05517167,705.38,704.25,1.06453049]
[1735704769846,0.26120304,705.35,704.25,1.06453049]
[1735704770042,0.26120304,705.34,704.25,1.06453049]
[1735704770348,0.26120304,705.34,704.03,1.34860929]
[1735704770349,0.26120304,705.33,704.16,1.06453049]
[1735704770554,0.26120304,705.32,704.16,1.06453049]
[1735704770843,0.26120304,705.31,704.16,1.06453049]
[1735704771049,0.28353109,705.39,704.16,1.06453049]
[1735704771249,0.26120975,705.38,704.16,1.06453049]
[1735704771450,0.26120975,705.38,704.14,1.06453049]
[1735704772248,0.26120976,705.37,704.14,1.06453049]
[1735704772448,0.26120976,705.36,704.14,1.06453049]
[1735704772650,0.26120976,705.35,704.14,1.06453049]
[1735704772951,0.26120976,705.34,704.14,1.06453049]
[1735704773152,1.33870276,705.39,704.14,1.06453049]
[1735704773153,0.26120976,705.33,704.14,1.06453049]
[1735704773352,0.26120976,705.32,704.14,1.06453049]
[1735704773547,0.26120976,705.31,704.14,1.06453049]
[1735704773751,1.33870276,705.39,704.14,1.06453049]
[1735704773950,0.54474408,705.38,704.14,1.06453049]
[1735704774252,0.26120897,705.37,704.14,1.06453049]
[1735704774750,0.26120897,705.37,704.03,0.2840788]
[1735704774751,0.26120897,705.37,704.15,1.06453049]
[1735704774952,0.26120098,705.36,704.15,1.06453049]
[1735704775152,0.26120098,705.35,704.15,1.06453049]
[1735704775353,0.26120098,705.34,704.15,1.06453049]
[1735704775552,0.28353511,705.38,704.18,1.06453049]
[1735704775748,0.26119878,705.37,704.18,1.06453049]
[1735704777949,0.26119878,705.37,704.16,1.06453049]
[1735704779354,0.26119878,705.37,704.15,1.06453049]
[1735704779554,0.28354315,705.36,704.15,1.06453049]
[1735704779754,0.26119878,705.35,704.15,1.06453049]
[1735704780357,2.79787843,705.34,704.21,1.06453049]
[1735704780656,0.26120426,705.33,704.21,1.06453049]
[1735704780852,2.53667417,705.34,704.21,1.06453049]
[1735704781061,0.2612055,705.33,704.21,1.06453049]
[1735704781450,0.2612055,705.33,704.27,1.06453049]
[1735704781451,1.05517167,705.29,704.27,1.06453049]
[1735704781757,0.2612055,705.28,704.27,1.06453049]
[1735704782858,0.2612055,705.28,704.03,0.2840788]
[1735704782859,1.05517167,705.27,704.26,1.06453049]
[1735704783064,0.2612055,705.26,704.26,1.06453049]
[1735704784259,1.05517167,705.22,704.29,1.06453049]
[1735704784456,0.2612055,705.21,704.29,1.06453049]
[1735704785558,1.05517167,705.22,704.29,1.06453049]
[1735704786652,1.05517167,705.27,704.18,1.06453049]
[1735704786854,0.26122675,705.26,704.18,1.06453049]
[1735704787457,0.26122657,705.25,704.18,1.06453049]
[1735704787655,0.26122657,705.24,704.18,1.06453049]
[1735704787856,0.26122657,705.23,704.18,1.06453049]
[1735704788052,1.05517167,705.27,704.17,1.06453049]
[1735704788259,0.26122817,705.26,704.17,1.06453049]
[1735704788758,1.05517167,705.27,704.17,1.06453049]
[1735704788958,0.54482166,705.26,704.17,1.06453049]
[1735704789158,0.54482536,705.25,704.17,1.06453049]
[1735704789458,0.26123798,705.24,704.16,1.06453049]
[1735704790058,0.28358738,705.25,704.16,1.06453049]
[1735704790257,0.28358738,705.25,704.03,0.2840788]
[1735704790258,1.31641561,705.24,704.13,1.06453049]
[1735704790458,0.26124394,705.23,704.13,1.06453049]
[1735704790653,1.74294094,705.23,704.13,1.06453049]
[1735704790857,0.26124394,705.22,704.13,1.06453049]
[1735704791660,0.26124394,705.22,704.1,1.06453049]
[1735704792858,0.26124432,705.21,704.11,1.06453049]
[1735704793057,0.26124432,705.2,704.11,1.06453049]
[1735704793255,0.26124432,705.19,704.11,1.06453049]
[1735704793452,0.26124432,705.18,704.11,1.06453049]
[1735704793655,0.26124432,705.22,704.11,1.06453049]
[1735704793857,0.26124259,705.21,704.11,1.06453049]
[1735704794060,0.26124259,705.2,704.11,1.06453049]
[1735704794259,0.26124259,705.2,704.03,0.2840788]
[1735704794260,0.26124259,705.19,704.1,1.06453049]
[1735704794459,0.26124259,705.18,704.1,1.06453049]
[1735704794659,1.481697,705.23,704.1,1.06453049]
[1735704794859,0.26124169,705.22,704.1,1.06453049]
[1735704795161,0.26124169,705.22,704.09,1.06453049]
[1735704796162,0.26123714,705.21,704.09,1.06453049]
[1735704796362,0.26123714,705.2,704.09,1.06453049]
[1735704796563,0.26123714,705.19,704.09,1.06453049]
[1735704796764,0.26123714,705.18,704.09,1.06453049]
[1735704796957,1.481697,705.23,704.09,1.06453049]
[1735704797160,0.2612375,705.22,704.1,1.06453049]
[1735704798164,0.26123781,705.21,704.11,1.06453049]
[1735704798366,0.26123781,705.2,704.11,1.06453049]
[1735704798563,0.26123781,705.19,704.11,1.06453049]
[1735704798766,0.26123781,705.18,704.11,1.06453049]
[1735704798969,0.26123781,705.17,704.11,1.06453049]
[1735704799166,0.26123781,705.16,704.11,1.06453049]
[1735704799369,0.26123781,705.16,704.03,0.2840788]
[1735704799370,0.26123781,705.15,704.17,1.06453049]
[1735704799669,0.26123781,705.14,704.17,1.06453049]
[1735704799868,1.05517167,705.2,704.17,1.06453049]
[1735704799869,0.26123781,705.13,704.17,1.06453049]
[1735704800069,0.26123781,705.12,704.17,1.06453049]
[1735704800270,0.26123781,705.11,704.17,1.06453049]
[1735704800472,1.05517167,705.2,704.17,1.06453049]
[1735704800666,0.26123789,705.19,704.19,1.06453049]
[1735704800872,0.26123789,705.18,704.19,1.06453049]
[1735704801174,0.26123789,705.17,704.19,1.06453049]
[1735704801368,0.26123789,705.16,704.19,1.06453049]
[1735704801565,0.26123789,705.15,704.19,1.06453049]
[1735704801770,0.26123789,705.14,704.18,1.06453049]
[1735704801971,1.05517167,705.19,704.18,1.06453049]
[1735704802267,0.26122003,705.18,704.18,1.06453049]
[1735704803171,0.26122003,705.18,704.24,1.06453049]
[1735704803363,0.26121505,705.17,704.24,1.06453049]
[1735704803671,1.05517167,705.23,704.24,1.06453049]
[1735704804367,0.28358738,705.25,704.15,1.06453049]
[1735704805572,0.28358738,705.25,704.3,1.06453049]
[1735704806774,0.28358738,705.25,704.31,1.06453049]
[1735704807873,0.28358738,705.25,704.27,1.06453049]
[1735704809176,0.28358738,705.25,704.28,1.06453049]
[1735704810170,0.28358738,705.25,704.25,1.06453049]
[1735704811675,0.28358738,705.25,704.21,1.06453049]
[1735704812872,0.28358738,705.25,704.19,1.06453049]
[1735704814179,0.28358738,705.25,704.14,1.06453049]
[1735704814977,0.28358738,705.25,704.23,1.06453049]
[1735704816082,0.28358738,705.25,704.22,1.06453049]
[1735704817374,0.28358738,705.25,704.24,1.06453049]
[1735704820378,0.26116986,705.24,704.24,1.06453049]
[1735704821483,0.28358738,705.25,704.24,1.06453049]
[1735704821684,0.26117286,705.24,704.24,1.06453049]
[1735704821881,0.26117587,705.23,704.26,1.06453049]
[1735704822086,0.28358738,705.25,704.26,1.06453049]
[1735704822989,0.28358738,705.25,704.21,1.06453049]
[1735704824090,0.28358738,705.25,704.23,1.06453049]
[1735704825384,0.28358738,705.25,704.03,1.34860929]
[1735704825385,0.28358738,705.25,704.24,1.06453049]
[1735704826587,0.28358738,705.25,704.26,1.06453049]
[1735704828593,0.28358738,705.25,704.29,1.06453049]
[1735704830292,0.28358738,705.25,704.31,1.06453049]
[1735704831197,0.28358738,705.25,704.12,1.06453049]
[1735704832587,0.28358738,705.25,704.15,1.06453049]
[1735704833594,0.28358738,705.25,704.17,1.06453049]
[1735704834796,0.28358738,705.25,704.16,1.06453049]
[1735704835897,0.28358738,705.25,704.17,1.06453049]
[1735704836698,0.28358738,705.25,704.22,1.06453049]
[1735704838099,0.28358738,705.25,704.26,1.06453049]
[1735704838900,0.28358738,705.25,704.25,1.06453049]
[1735704839897,0.28358738,705.25,704.28,1.06453049]
[1735704842001,0.28358738,705.25,704.46,1.06453049]
[1735704843301,0.28358738,705.25,704.47,1.06453049]
[1735704844196,0.28358738,705.25,704.46,1.06453049]
[1735704845502,0.28358738,705.25,704.23,1.06453049]
[1735704846503,0.28358738,705.25,704.25,1.06453049]
[1735704847404,0.28358738,705.25,704.26,1.06453049]
[1735704851501,0.28358738,705.25,704.29,1.06453049]
[1735704852305,0.28358738,705.25,704.41,1.06453049]
[1735704852507,1.05517167,705.52,704.41,1.06453049]
[1735704853706,1.05517167,705.56,704.5,1.06453049]
[1735704853906,0.2611035,705.55,704.5,1.06453049]
[1735704855007,0.2611035,705.55,704.06,0.71700698]
[1735704855008,1.31627517,705.55,704.53,1.06453049]
[1735704855208,0.2611035,705.54,704.53,1.06453049]
[1735704856207,0.2611035,705.54,704.49,1.06453049]
[1735704856407,0.2611035,705.53,704.49,1.06453049]
[1735704856602,0.2611035,705.52,704.49,1.06453049]
[1735704856806,1.05517167,705.56,704.49,1.06453049]
[1735704857208,1.05517167,705.6,704.51,1.06453049]
[1735704857407,0.26108009,705.59,704.51,1.06453049]
[1735704857603,1.05517167,705.6,704.51,1.06453049]
[1735704857808,0.26107624,705.59,704.51,1.06453049]
[1735704858409,1.05517167,705.69,704.53,1.06453049]
[1735704858711,0.26106644,705.68,704.53,1.06453049]
[1735704859408,0.26106644,705.68,704.55,1.06453049]
[1735704859609,0.26106644,705.67,704.55,1.06453049]
[1735704859807,0.26106644,705.66,704.55,1.06453049]
[1735704860011,0.26106644,705.65,704.55,1.06453049]
[1735704860212,0.26106644,705.64,704.55,1.06453049]
[1735704860412,0.26106644,705.63,704.55,1.06453049]
[1735704860608,0.26106644,705.62,704.55,1.06453049]
[1735704860810,0.26106644,705.62,704.21,1.06453049]
[1735704860811,2.53590197,705.76,704.53,1.06453049]
[1735704861112,0.26104872,705.75,704.53,1.06453049]
[1735704861814,0.26101581,705.74,704.57,1.06453049]
[1735704862114,0.26101581,705.73,704.57,1.06453049]
[1735704862313,0.26101581,705.72,704.57,1.06453049]
[1735704862514,0.26101581,705.71,704.57,1.06453049]
[1735704862814,1.48054655,705.83,704.57,1.06453049]
[1735704863014,0.26100893,705.82,704.62,1.06453049]
[1735704864316,0.26100893,705.82,704.6,1.06453049]
[1735704865412,0.26100893,705.82,704.56,1.06453049]
[1735704866015,0.26100284,705.81,704.56,1.06453049]
[1735704866317,0.26100284,705.8,704.56,1.06453049]
[1735704866515,0.26100284,705.79,704.56,1.06453049]
[1735704866715,1.48054655,705.83,704.54,1.06453049]
[1735704866716,0.26100284,705.78,704.54,1.06453049]
[1735704866915,0.26100284,705.77,704.54,1.06453049]
[1735704867116,0.26100284,705.76,704.54,1.06453049]
[1735704867319,0.26100284,705.75,704.54,1.06453049]
[1735704867512,0.26100284,705.74,704.54,1.06453049]
[1735704867716,0.26100284,705.73,704.49,1.06453049]
[1735704867916,0.26100284,705.72,704.49,1.06453049]
[1735704868215,0.26100284,705.71,704.49,1.06453049]
[1735704868421,1.48054655,705.83,704.49,1.06453049]
[1735704868623,0.2610086,705.82,704.49,1.06453049]
[1735704868922,0.2610086,705.82,704.48,1.06453049]
[1735704869819,0.2610086,705.82,704.44,1.06453049]
[1735704870623,0.26101266,705.81,704.44,1.06453049]
[1735704870824,0.26101266,705.8,704.44,1.06453049]
[1735704871025,0.26101266,705.79,704.45,1.06453049]
[1735704871224,1.48054655,705.83,704.45,1.06453049]
[1735704871424,0.26101211,705.82,704.46,0.2839054]
[1735704871924,0.26101211,705.82,704.48,1.06453049]
[1735704872725,0.26101211,705.82,704.48,1.34842783]
[1735704874027,0.26102005,705.81,704.48,1.34842783]
[1735704874221,0.26102005,705.8,704.49,0.28389331]
[1735704874427,0.26102005,705.79,704.49,0.28389331]
[1735704874728,0.26099551,705.78,704.49,0.28389331]
[1735704874927,0.26099551,705.77,704.49,0.28389331]
[1735704875130,0.26099551,705.76,704.52,1.06453049]
[1735704875322,0.26099551,705.75,704.53,0.28387719]
[1735704875628,0.26099551,705.74,704.53,0.28387719]
[1735704875824,0.26099551,705.73,704.53,0.28387719]
[1735704876125,0.26099551,705.72,704.53,0.28387719]
[1735704876327,0.26099551,705.71,704.53,0.28387719]
[1735704876529,0.26099551,705.7,704.53,0.28387719]
[1735704876827,0.26099551,705.69,704.53,0.28387719]
[1735704877027,0.26099551,705.68,704.53,0.28387719]
[1735704877221,0.26099551,705.67,704.53,0.28387719]
[1735704877425,1.48044158,705.92,704.53,0.28387719]
[1735704877625,0.26100427,705.91,704.53,0.28387719]
[1735704879225,1.48044158,705.92,704.53,0.28387719]
[1735704879431,0.26102748,705.91,704.53,0.28387719]
[1735704880932,0.28332625,705.9,704.53,0.28387719]
[1735704881128,0.26102748,705.89,704.53,0.28387719]
[1735704882031,0.28333427,705.88,704.53,0.28387719]
[1735704882225,0.26102748,705.87,704.53,0.28387719]
[1735704883032,0.2833423,705.86,704.53,0.28387719]
[1735704883232,0.26102748,705.85,704.53,0.28387719]
[1735704883433,0.28335033,705.84,704.53,0.28387719]
[1735704883731,0.26102748,705.83,704.53,0.28387719]
[1735704884733,1.74167739,705.82,704.53,0.28387719]
[1735704884934,0.54442496,705.81,704.53,0.28387719]
[1735704885133,0.26106259,705.8,704.53,0.28387719]
[1735704887034,1.05517167,705.78,704.53,0.28387719]
[1735704887235,0.54446287,705.77,704.53,0.28387719]
[1735704887434,0.26108444,705.76,704.53,0.28387719]
[1735704887729,0.28338646,705.75,704.53,0.28387719]
[1735704888035,1.05517167,705.72,704.53,0.28387719]
[1735704888236,0.26108444,705.71,704.53,0.28387719]
[1735704888534,0.28340654,705.7,704.53,0.28387719]
[1735704888735,0.26108444,705.69,704.53,0.28387719]
[1735704890638,0.26108254,705.68,704.53,0.28387719]
[1735704890835,0.26108254,705.67,704.53,0.28387719]
[1735704891044,0.26108254,705.66,704.53,0.28387719]
[1735704891336,0.26108254,705.65,704.53,0.28387719]
[1735704891536,0.26108254,705.64,704.53,0.28387719]
[1735704891738,0.26108254,705.63,704.53,0.28387719]
[1735704891937,0.26108254,705.62,704.53,0.28387719]
[1735704892238,0.26108254,705.61,704.53,0.28387719]
[1735704892433,0.26108254,705.6,704.53,0.28387719]
[1735704892637,0.26108254,705.59,704.53,0.28387719]
[1735704892938,0.26108254,705.58,704.53,0.28387719]
[1735704893138,0.26108254,705.57,704.53,0.28387719]
[1735704893337,0.26108254,705.56,704.53,0.28387719]
[1735704893537,0.26108254,705.55,704.53,0.28387719]
[1735704893734,0.26108254,705.54,704.53,0.28387719]
[1735704893940,1.33857821,705.7,704.53,0.28387719]
[1735704894140,0.26108313,705.69,704.53,0.28387719]
[1735704895035,1.4807828,705.68,704.53,0.28387719]
[1735704895237,0.26108232,705.67,704.53,0.28387719]
[1735704897843,1.4807828,705.68,704.53,0.28387719]
[1735704898044,0.26107583,705.67,704.53,0.28387719]
[1735704900046,0.2610779,705.66,704.53,0.28387719]
[1735704900244,0.2610779,705.65,704.53,0.28387719]
[1735704900447,0.2610779,705.64,704.53,0.28387719]
[1735704900644,0.26107631,705.63,704.53,0.28387719]
[1735704900949,0.26107631,705.62,704.53,0.28387719]
[1735704901150,1.4807828,705.68,704.53,0.28387719]
[1735704901352,0.26107631,705.67,704.53,0.28387719]
[1735704901748,0.26107631,705.66,704.53,0.28387719]
[1735704901948,0.26107631,705.65,704.53,0.28387719]
[1735704902151,0.26107631,705.64,704.53,0.28387719]
[1735704902447,0.26107631,705.63,704.53,0.28387719]
[1735704902651,0.26107631,705.62,704.53,0.28387719]
[1735704902950,1.7642156,705.7,704.53,0.28387719]
[1735704903246,0.26107757,705.69,704.53,0.28387719]
[1735704905050,1.7642156,705.7,704.53,0.28387719]
[1735704905051,0.26108525,705.68,704.53,0.28387719]
[1735704905251,0.26108525,705.67,704.53,0.28387719]
[1735704905451,0.26108525,705.66,704.53,0.28387719]
[1735704905655,1.7642156,705.7,704.53,0.28387719]
[1735704905849,0.26107943,705.69,704.53,0.28387719]
[1735704907850,1.7642156,705.7,704.53,0.28387719]
[1735704907851,0.26107633,705.68,704.53,0.28387719]
[1735704908052,0.26107633,705.67,704.53,0.28387719]
[1735704908353,0.26107633,705.66,704.53,0.28387719]
[1735704908548,0.26107633,705.65,704.53,0.28387719]
[1735704908751,0.26107633,705.64,704.53,0.28387719]
[1735704908952,0.26107633,705.63,704.53,0.28387719]
[1735704909248,0.26107633,705.62,704.53,0.28387719]
[1735704909456,0.26107633,705.61,704.53,0.28387719]
[1735704909655,0.26107633,705.6,704.53,1.34840768]
[1735704909853,0.26107633,705.59,704.53,1.34840768]
[1735704910154,0.26107633,705.58,704.53,1.34840768]
[1735704910353,0.26107633,705.57,704.53,1.34840768]
[1735704910554,0.26107633,705.56,704.53,0.28387719]
[1735704910754,0.26107633,705.55,704.53,0.28387719]
[1735704910952,0.26107633,705.54,704.53,0.28387719]
[1735704911147,0.26107633,705.53,704.53,0.28387719]
[1735704911348,0.26107633,705.52,704.53,0.28387719]
[1735704911552,0.26107633,705.51,704.53,0.28387719]
[1735704911753,1.05517167,705.62,704.55,1.06453049]
[1735704911952,0.26108738,705.61,704.55,1.06453049]
[1735704912752,1.05517167,705.62,704.55,1.06453049]
[1735704912947,0.26110438,705.61,704.53,0.28387719]
[1735704913453,0.26110438,705.6,704.53,0.28387719]
[1735704913754,0.26110438,705.59,704.53,0.28387719]
[1735704913954,0.26110438,705.58,704.53,0.28387719]
[1735704914155,0.26110438,705.57,704.53,0.28387719]
[1735704914455,0.26110438,705.56,704.53,0.28387719]
[1735704914650,2.53599123,705.63,704.53,0.28387719]
[1735704914852,0.26109134,705.62,704.53,0.28387719]
[1735704915350,0.26109306,705.61,704.53,0.28387719]
[1735704915550,0.26109308,705.6,704.53,0.28387719]
[1735704915749,0.26109308,705.59,704.53,0.28387719]
[1735704915950,1.48081956,705.63,704.53,0.28387719]
[1735704916256,0.26108615,705.62,704.53,0.28387719]
[1735704917656,0.26108304,705.61,704.54,1.06453049]
[1735704917856,0.26108304,705.6,704.54,1.06453049]
[1735704918159,1.48081956,705.63,704.54,1.06453049]
[1735704918357,0.26108269,705.62,704.54,1.06453049]
[1735704918757,0.26108269,705.62,704.53,0.28387719]
[1735704918758,1.05517167,705.61,704.58,1.06453049]
[1735704919954,1.05517167,705.59,704.6,1.06453049]
[1735704921462,1.05517167,705.58,704.6,1.06453049]
[1735704922555,1.31624312,705.57,704.61,1.06453049]
[1735704922761,0.26107145,705.56,704.61,1.06453049]
[1735704923460,1.05517167,705.57,704.61,1.06453049]
[1735704923661,1.05517167,705.55,704.69,1.06453049]
[1735704924659,1.05517167,705.55,704.7,1.06453049]
[1735704924965,1.05517167,705.57,704.7,1.06453049]
[1735704925266,0.2610668,705.56,704.7,1.06453049]
[1735704925658,1.05517167,705.57,704.72,1.06453049]
[1735704926965,0.28340654,705.7,704.72,1.06453049]
[1735704926966,1.05517167,705.58,704.72,1.06453049]
[1735704927161,0.26106052,705.57,704.72,1.06453049]
[1735704928564,0.26106052,705.56,704.72,1.06453049]
[1735704928764,0.2610826,705.55,704.72,1.06453049]
[1735704928965,0.2610826,705.54,704.72,1.06453049]
[1735704929166,0.2610826,705.53,704.72,1.06453049]
[1735704929367,0.2610826,705.52,704.68,1.06453049]
[1735704929563,0.2610826,705.51,704.68,1.06453049]
[1735704929767,0.2610826,705.5,704.68,1.06453049]
[1735704929969,0.2610826,705.49,704.68,1.06453049]
[1735704930168,0.2610826,705.48,704.68,1.06453049]
[1735704930368,0.2610826,705.47,704.68,1.06453049]
[1735704930564,1.05517167,705.49,704.68,1.06453049]
[1735704931772,0.28340654,705.7,704.53,0.28387719]
[1735704931773,1.05517167,705.53,704.7,1.06453049]
[1735704932073,0.26107644,705.52,704.7,1.06453049]
[1735704932870,0.26107644,705.52,704.69,1.06453049]
[1735704933875,1.31624811,705.52,704.69,1.06453049]
[1735704934076,0.26108361,705.51,704.69,1.06453049]
[1735704934369,0.26108319,705.5,704.69,1.06453049]
[1735704934573,0.26108319,705.49,704.68,1.06453049]
[1735704934773,0.26108319,705.48,704.68,1.06453049]
[1735704935075,1.05517167,705.52,704.68,1.06453049]
[1735704935268,0.2610805,705.51,704.68,1.06453049]
[1735704936778,1.05517167,705.52,704.69,1.06453049]
[1735704936973,0.26108049,705.51,704.69,1.06453049]
[1735704937875,0.26108049,705.51,704.68,1.06453049]
[1735704938175,1.05517167,705.53,704.68,1.06453049]
[1735704938375,0.26108067,705.52,704.68,1.06453049]
[1735704940077,0.26108067,705.52,704.67,1.06453049]
[1735704941378,1.05517167,705.49,704.68,1.06453049]
[1735704941578,0.26108067,705.48,704.68,1.06453049]
[1735704942079,1.05517167,705.49,704.68,1.06453049]
[1735704942375,1.31626369,705.48,704.66,1.06453049]
[1735704942579,0.26109202,705.47,704.66,1.06453049]
[1735704943181,1.05517167,705.48,704.66,1.06453049]
[1735704944582,1.05517167,705.48,704.53,0.28387719]
[1735704944583,1.05517167,705.54,704.53,1.34840768]
[1735704945582,1.05517167,705.56,704.53,1.34840768]
[1735704945882,0.26110699,705.55,704.53,1.34840768]
[1735704946583,0.26110699,705.55,704.53,0.28387719]
[1735704946776,1.05517167,705.56,704.53,0.28387719]
[1735704946980,1.05517167,705.56,704.52,1.06453049]
[1735704947782,1.76429623,705.63,704.37,1.06453049]
[1735704947783,1.05517167,705.6,704.37,1.06453049]
[1735704947983,0.26116876,705.59,704.37,1.06453049]
[1735704948986,0.28345474,705.58,704.18,1.06453049]
[1735704950087,0.28345474,705.58,704.17,1.06453049]
[1735704951089,0.28345474,705.58,704.13,1.06453049]
[1735704952587,0.26116024,705.57,704.11,1.06453049]
[1735704953982,0.26116024,705.57,704.15,1.06453049]
[1735704955089,0.26116024,705.57,704.13,1.06453049]
[1735704955282,0.26115169,705.56,704.13,1.06453049]
[1735704955587,0.26115169,705.55,704.13,1.06453049]
[1735704955782,0.26115169,705.54,704.13,1.06453049]
[1735704955982,0.26115169,705.53,704.13,1.06453049]
[1735704956287,0.26115169,705.52,704.15,1.06453049]
[1735704956482,1.48123976,705.55,704.15,1.06453049]
[1735704956685,0.26115597,705.54,704.15,1.06453049]
[1735704957288,0.26115597,705.54,704.13,1.06453049]
[1735704957883,1.48123976,705.55,704.13,1.06453049]
[1735704958089,0.26114785,705.54,704.13,1.06453049]
[1735704958589,0.26114785,705.54,704.24,1.06453049]
[1735704958989,0.28347483,705.53,704.24,1.06453049]
[1735704959183,0.26114785,705.52,704.24,1.06453049]
[1735704959488,0.28348287,705.51,704.24,1.06453049]
[1735704959690,0.28348287,705.51,704.25,1.06453049]
[1735704959691,0.26114785,705.5,704.25,1.06453049]
[1735704960590,0.28348287,705.51,704.28,1.06453049]
[1735704961988,0.28348287,705.51,704.26,1.06453049]
[1735704963287,0.28348287,705.51,704.0,1.06453049]
[1735704963288,0.28348287,705.51,704.28,1.06453049]
[1735704964292,0.28348287,705.51,704.29,1.06453049]
[1735704965393,0.28348287,705.51,704.3,1.06453049]
[1735704966792,0.28348287,705.51,704.21,1.06453049]
[1735704969190,0.28348287,705.51,704.22,1.06453049]
[1735704970385,0.28348287,705.51,704.36,1.06453049]
[1735704971587,0.28348287,705.51,704.37,1.06453049]
[1735704972890,0.28348287,705.51,703.62,2.17341642]
[1735704972891,0.28348287,705.51,704.39,1.06453049]
[1735704974290,0.28348287,705.51,704.41,1.06453049]
[1735704975390,0.28348287,705.51,704.59,1.06453049]
[1735704977496,1.05517167,705.82,704.59,1.06453049]
[1735704977696,0.26101434,705.81,704.59,1.06453049]
[1735704977996,1.05517167,705.86,704.59,1.06453049]
[1735704978189,0.26101113,705.85,704.59,1.06453049]
[1735704978796,0.26101113,705.85,704.66,1.06453049]
[1735704978992,0.26101113,705.84,704.66,1.06453049]
[1735704979192,0.26101113,705.83,704.66,1.06453049]
[1735704979393,0.26101113,705.82,704.66,1.06453049]
[1735704979595,0.26101113,705.81,704.66,1.06453049]
[1735704979796,0.26101113,705.8,704.67,1.06453049]
[1735704980094,0.26099222,705.79,704.67,1.06453049]
[1735704980298,1.48049931,705.9,704.67,1.06453049]
[1735704980495,0.26099497,705.89,704.67,1.06453049]
[1735704981000,0.26099497,705.89,704.6,1.06453049]
[1735704982102,0.26099497,705.89,704.4,0.28392958]
[1735704982103,0.26099497,705.89,704.61,1.06453049]
[1735704983199,0.26097237,705.88,704.61,1.06453049]
[1735704983499,0.26097237,705.87,704.57,1.06453049]
[1735704983701,0.26097237,705.86,704.57,1.06453049]
[1735704983895,0.26097237,705.85,704.57,1.06453049]
[1735704984100,1.48030514,705.96,704.57,1.06453049]
[1735704984298,0.26097012,705.95,704.57,1.06453049]
[1735704984702,0.26097012,705.95,704.56,1.06453049]
[1735704985602,0.26097012,705.95,704.57,0.28386107]
[1735704985907,0.26098218,705.94,704.57,0.28386107]
[1735704986206,0.26098218,705.93,704.57,0.28386107]
[1735704986407,0.26098218,705.92,704.57,0.28386107]
[1735704986607,0.26098218,705.91,704.57,0.28386107]
[1735704986806,0.26098218,705.9,704.57,0.28386107]
[1735704987007,1.48030514,705.96,704.57,0.28386107]
[1735704987008,0.26098218,705.89,704.57,0.28386107]
[1735704987302,0.26098218,705.88,704.57,0.28386107]
[1735704987506,0.26098218,705.87,704.57,0.28386107]
[1735704987706,0.26098218,705.86,704.57,0.28386107]
[1735704987906,0.26098218,705.85,704.57,0.28386107]
[1735704988107,0.26098218,705.84,704.57,0.28386107]
[1735704988307,0.26098218,705.83,704.57,0.28386107]
[1735704988605,0.26098986,705.82,704.57,0.28386107]
[1735704988804,0.26098986,705.81,704.57,0.28386107]